fUST/lending_fUST_20260310
["ID","MTS","AMOUNT","RATE_DAILY","PERIOD"]
[408104924,1773149438358,-187.78006525,7.594e-05,2]
[408104926,1773149438367,-194.72792766,7.594e-05,2]
[408104928,1773149438377,-201.93286099,7.594e-05,2]
[408104930,1773149438385,-209.40437684,7.594e-05,2]
[408104932,1773149438394,-217.15233878,7.594e-05,2]
[408104934,1773149438403,-225.18697532,7.594e-05,2]
[408104936,1773149438415,-233.51889341,7.594e-05,2]
[408104938,1773149438425,-242.15909246,7.594e-05,2]
[408104940,1773149438433,-251.11897888,7.594e-05,2]
[408104942,1773149438443,-260.4103811,7.594e-05,2]
[408104944,1773149438452,-270.0455652,7.594e-05,2]
[408104946,1773149438461,-2150.738,7.594e-05,2]
[408104947,1773149438470,-280.03725112,7.594e-05,2]
[408104949,1773149438479,-290.39862941,7.594e-05,2]
[408104951,1773149438488,-301.1433787,7.594e-05,2]
[408104953,1773149438497,-204.99553546,7.672e-05,2]
[408104955,1773149438506,-500.0,7.673e-05,2]
[408104957,1773149438517,-500.0,7.673e-05,2]
[408104959,1773149438527,-500.0,7.673e-05,2]
[408104961,1773149438535,-500.0,7.673e-05,2]
[408104963,1773149438544,-500.0,7.673e-05,2]
[408104965,1773149438553,-500.0,7.673e-05,2]
[408104967,1773149438562,-500.0,7.673e-05,2]
[408104969,1773149438573,-500.0,7.673e-05,2]
[408104971,1773149438582,-500.0,7.673e-05,2]
[408104973,1773149438591,-500.0,7.673e-05,2]
[408104975,1773149438600,-637.36303042,7.673e-05,2]
[408105013,1773149438966,-500.0,7.673e-05,2]
[408105015,1773149438980,-500.0,7.673e-05,2]
[408105017,1773149438989,-500.0,7.673e-05,2]
[408105019,1773149438998,-151.0,7.673e-05,2]
[408105021,1773149439007,-178454.07920552,7.696e-05,2]
[408105278,1773149441686,-35353.41919207,7.696e-05,2]
[408105280,1773149441698,-2433.1418704,7.696e-05,2]
[408105285,1773149441732,-28402.88775087,7.696e-05,2]
[408105287,1773149441744,-4954.22241154,7.696e-05,2]
[408105289,1773149441753,-9199.80118829,7.874e-05,2]
[408105291,1773149441766,-4611.39940844,7.874e-05,2]
[408105294,1773149441777,-9621.62284973,7.874e-05,2]
[408105438,1773149443003,-5493.01393776,7.874e-05,2]
[408105708,1773149445772,-20225.96564599,7.874e-05,2]
[408105715,1773149445832,-281.53983999,7.874e-05,2]
[408112212,1773150347142,-166.39904971,2.277e-05,2]
[408112215,1773150436115,-436.20935662,2.254e-05,2]
[408112216,1773150440132,-152.67053349,2.254e-05,2]
[408112219,1773150551085,-4833.60095029,2.231e-05,2]
[408112220,1773150551106,-4411.12010989,2.254e-05,2]
[408112221,1773150551130,-95.83060736,2.299e-05,2]
[408112222,1773150553086,-204.16939264,2.299e-05,2]
[408112223,1773150553107,-1051.09,2.3e-05,2]
[408112224,1773150553130,-92.24060736,4.589e-05,2]
[408112225,1773150553156,-57.75939264,4.589e-05,2]
[408112226,1773150557684,1294.64060736,6.342e-05,2]
[408112227,1773150563096,-1355.00838574,6.342e-05,2]
[408112229,1773150568086,-2350.3510069,6.342e-05,2]
[408112230,1773150568108,-221.8642993,6.406e-05,2]
[408112231,1773150568131,-177.0,6.589e-05,2]
[408112232,1773150568151,-837.8152913,6.945e-05,2]
[408112261,1773150632024,-4935.246198,6.876e-05,2]
[408112263,1773150632036,-64.753802,6.876e-05,2]
[408112265,1773150632045,-517.0,6.876e-05,2]
[408112267,1773150632055,-83.296198,7.016e-05,2]
[408112270,1773150632086,-66.703802,7.016e-05,2]
[408112271,1773150632095,-230.0,7.599e-05,2]
[408112272,1773150632104,-964.26173827,7.6e-05,2]
[408112446,1773150638094,-2871.51856589,7.6e-05,2]
[408112448,1773150638104,-500.0,7.653e-05,2]
[408112450,1773150638113,-500.0,7.653e-05,2]
[408112452,1773150638122,-500.0,7.653e-05,2]
[408112454,1773150638132,-541.15706046,7.653e-05,2]
[408112456,1773150638145,-500.0,7.653e-05,2]
[408112458,1773150638154,-500.0,7.653e-05,2]
[408112460,1773150638163,-500.0,7.653e-05,2]
[408112462,1773150638172,-500.0,7.653e-05,2]
[408112464,1773150638181,-501.27527013,7.653e-05,2]
[408112466,1773150638191,-500.0,7.653e-05,2]
[408112467,1773150638201,-2150.738,7.669e-05,2]
[408112468,1773150638211,-206.80902735,7.673e-05,2]
[408112470,1773150638220,-64128.78793559,7.674e-05,2]
[408112471,1773150638231,-30542.74436907,7.674e-05,2]
[408112474,1773150638242,-4104.11748778,7.674e-05,2]
[408112730,1773150640633,-35060.58516619,7.674e-05,2]
[408113284,1773150645979,-6864.1674737,7.674e-05,2]
[408113291,1773150646038,-349.8,7.674e-05,2]
[408113299,1773150646098,-1082.59443861,7.674e-05,2]
[408114644,1773151549445,-188.20105805,7.179e-05,2]
[408114677,1773151832086,-519.0,7.001e-05,2]
[408114679,1773151832096,-227.30075,7.001e-05,2]
[408114681,1773151832106,-150.0,7.225e-05,2]
[408114683,1773151832115,-300.0,7.272e-05,2]
[408114685,1773151832126,-230.0,7.272e-05,2]
[408114687,1773151832135,-4108.0010758,7.273e-05,2]
[408114689,1773151832144,-501.26945778,7.273e-05,2]
[408114691,1773151832153,-500.0,7.273e-05,2]
[408114693,1773151832162,-500.0,7.273e-05,2]
[408114695,1773151832172,-500.0,7.273e-05,2]
[408114697,1773151832181,-500.0,7.273e-05,2]
[408114699,1773151832191,-500.0,7.273e-05,2]
[408114701,1773151832200,-641.97272046,7.273e-05,2]
[408114703,1773151832209,-500.0,7.273e-05,2]
[408114705,1773151832218,-500.0,7.273e-05,2]
[408114707,1773151832228,-221.7479153,7.273e-05,2]
[408114711,1773151832239,-109.42195136,7.273e-05,2]
[408114714,1773151832248,-500.0,7.273e-05,2]
[408114716,1773151832257,-500.0,7.273e-05,2]
[408114718,1773151832266,-500.0,7.273e-05,2]
[408114720,1773151832275,-500.0,7.273e-05,2]
[408114722,1773151832283,-500.0,7.273e-05,2]
[408114724,1773151832292,-500.0,7.273e-05,2]
[408114725,1773151832301,-264.47864151,7.273e-05,2]
[408114726,1773151832312,-235.52135849,7.273e-05,2]
[408114727,1773151832320,-500.0,7.273e-05,2]
[408114728,1773151832330,-458.98409382,7.273e-05,2]
[408114729,1773151832339,-500.0,7.273e-05,2]
[408114730,1773151832348,-500.0,7.273e-05,2]
[408114731,1773151832357,-500.35287432,7.273e-05,2]
[408114732,1773151832366,-500.0,7.273e-05,2]
[408114734,1773151832376,-500.0,7.273e-05,2]
[408114736,1773151832386,-2646.18926078,7.3e-05,2]
[408114739,1773151832403,-2500.0,7.3e-05,2]
[408114741,1773151832415,-1384.70846504,7.3e-05,2]
[408114743,1773151832426,-13362.59909142,7.3e-05,2]
[408114889,1773151838293,-5000.0,6.931e-05,2]
[408114890,1773151838303,-9039.27441913,7.3e-05,2]
[408114891,1773151838313,-6150.13040217,7.3e-05,2]
[408114892,1773151840683,-2608.99810648,7.227e-05,2]
[408114893,1773151840698,-1119.34001489,7.227e-05,2]
[408114908,1773151843280,-2463.68099352,7.227e-05,2]
[408114909,1773151843295,-977.29780457,7.3e-05,2]
[408114910,1773151843315,-3759.52690935,7.3e-05,2]
[408114911,1773151843399,-2630.47543046,7.3e-05,2]
[408114922,1773151846815,-20.91122867,7.3e-05,2]
[408114923,1773151846842,-14970.90944582,7.3e-05,2]
[408114933,1773152401709,2000.0,0.000102,120]
[408114984,1773152825152,-1057.74151642,6.601e-05,2]
[408114985,1773152825176,-179.78992956,6.668e-05,2]
[408114992,1773152965086,-4900.0,6.601e-05,2]
[408115017,1773153032257,-5000.0,6.535e-05,2]
[408115019,1773153032267,-514.0,6.601e-05,2]
[408115021,1773153032277,-150.0,6.719e-05,2]
[408115023,1773153032287,-240.553,7.056e-05,2]
[408115025,1773153032296,-300.0,7.072e-05,2]
[408115027,1773153032306,-720.0,7.072e-05,2]
[408115028,1773153032316,-300.0,7.072e-05,2]
[408115030,1773153032325,-500.0,7.073e-05,2]
[408115032,1773153032334,-500.0,7.073e-05,2]
[408115034,1773153032343,-500.0,7.073e-05,2]
[408115036,1773153032353,-500.0,7.073e-05,2]
[408115039,1773153032362,-500.0,7.073e-05,2]
[408115041,1773153032371,-500.0,7.073e-05,2]
[408115042,1773153032381,-500.0,7.073e-05,2]
[408115045,1773153032390,-481.28135251,7.073e-05,2]
[408115046,1773153032399,-500.0,7.073e-05,2]
[408115049,1773153032409,-500.0,7.073e-05,2]
[408115052,1773153032418,-500.0,7.073e-05,2]
[408115055,1773153032427,-500.0,7.073e-05,2]
[408115057,1773153032437,-500.0,7.073e-05,2]
[408115059,1773153032446,-500.0,7.073e-05,2]
[408115061,1773153032455,-500.0,7.073e-05,2]
[408115064,1773153032465,-500.0,7.073e-05,2]
[408115067,1773153032475,-500.0,7.073e-05,2]
[408115071,1773153032485,-500.0,7.073e-05,2]
[408115073,1773153032496,-500.0,7.073e-05,2]
[408115075,1773153032505,-500.0,7.073e-05,2]
[408115077,1773153032514,-500.0,7.073e-05,2]
[408115079,1773153032524,-500.0,7.073e-05,2]
[408115081,1773153032533,-21964.0,7.09e-05,2]
[408115083,1773153032543,-7677.28472698,7.1e-05,2]
[408115086,1773153032555,-369.81762917,7.1e-05,2]
[408115088,1773153032566,-7852.37767396,7.1e-05,2]
[408115090,1773153032577,-4543.55715804,7.1e-05,2]
[408115092,1773153032588,-4624.983028,7.1e-05,2]
[408115141,1773153038436,-47388.51305982,7.1e-05,2]
[408115142,1773153038448,-1465.00951315,7.1e-05,2]
[408115143,1773153038459,-5199.95634752,7.1e-05,2]
[408115144,1773153038470,-1756.27966031,7.1e-05,2]
[408115153,1773153040905,-3687.01289079,7.029e-05,2]
[408115154,1773153040917,-735.47572903,7.029e-05,2]
[408115155,1773153040928,-3473.5,7.029e-05,2]
[408115170,1773153043639,-1439.55038988,7.029e-05,2]
[408115186,1773153046372,-576.0599145,7.029e-05,2]
[408115188,1773153046382,-10914.6800855,7.1e-05,2]
[408115190,1773153046394,-19337.1998653,7.1e-05,2]
[408115216,1773153908307,-2000.0,6.133e-05,2]
[408115217,1773153909241,-2000.0,6.133e-05,2]
[408115218,1773153909573,-477.82747159,6.133e-05,2]
[408115219,1773153909596,-1011.0,6.194e-05,2]
[408115220,1773153909617,-511.17252841,6.195e-05,2]
[408115221,1773153909881,-2000.0,6.195e-05,2]
[408115222,1773153910222,-1858.81938012,6.195e-05,2]
[408115223,1773153910244,-141.18061988,6.257e-05,2]
[408115224,1773153910797,-158.81938012,6.257e-05,2]
[408115225,1773153910819,-206.0,6.257e-05,2]
[408115226,1773153910845,-1635.18061988,6.258e-05,2]
[408115227,1773153910980,-2000.0,6.258e-05,2]
[408115228,1773153911359,-1364.81938012,6.258e-05,2]
[408115229,1773153911382,-150.0,6.353e-05,2]
[408115230,1773153911403,-485.18061988,6.515e-05,2]
[408115231,1773153911762,-27.81938012,6.515e-05,2]
[408115232,1773153911792,-1972.18061988,6.567e-05,2]
[408115233,1773153912018,-493.81503719,6.567e-05,2]
[408115234,1773153912041,-308.3405592,6.605e-05,2]
[408115235,1773153912068,-1197.84440361,6.667e-05,2]
[408115236,1773153912643,-2000.0,6.667e-05,2]
[408115237,1773153914269,-2000.0,6.667e-05,2]
[408115238,1773153914635,-465.38732466,6.667e-05,2]
[408115239,1773153914658,-192.442,6.667e-05,2]
[408115240,1773153914692,-1342.17067534,6.667e-05,2]
[408115241,1773153914985,-2000.0,6.667e-05,2]
[408115242,1773153915303,-765.83040046,6.667e-05,2]
[408115243,1773153915329,-1234.16959954,6.7e-05,2]
[408115244,1773153915651,-2000.0,6.7e-05,2]
[408115245,1773153916024,-2000.0,6.7e-05,2]
[408115246,1773153916945,-1044.91769744,6.7e-05,2]
[408115247,1773153916969,-955.08230256,6.7e-05,2]
[408115248,1773153917011,-2000.0,6.7e-05,2]
[408115249,1773153917177,-2000.0,6.7e-05,2]
[408115250,1773153917858,-1152.34366199,6.7e-05,2]
[408115251,1773153917880,-847.65633801,6.7e-05,2]
[408115252,1773153918221,-2000.0,6.7e-05,2]
[408115253,1773153918648,-2000.0,6.7e-05,2]
[408115254,1773153919096,-2000.0,6.7e-05,2]
[408115255,1773153919449,-47.28652777,6.7e-05,2]
[408115256,1773153919471,-553.24223675,6.7e-05,2]
[408115257,1773153919492,-1366.72378096,6.7e-05,2]
[408115258,1773153919514,-32.74745452,6.7e-05,2]
[408115259,1773153919790,-415.2547169,6.7e-05,2]
[408115260,1773153919811,-500.0,6.873e-05,2]
[408115261,1773153919830,-500.0,6.873e-05,2]
[408115262,1773153919849,-500.0,6.873e-05,2]
[408115263,1773153919869,-84.7452831,6.873e-05,2]
[408115264,1773153920172,-415.2547169,6.873e-05,2]
[408115265,1773153920192,-500.0,6.873e-05,2]
[408115266,1773153920214,-500.0,6.873e-05,2]
[408115267,1773153920234,-500.0,6.873e-05,2]
[408115268,1773153920255,-84.7452831,6.873e-05,2]
[408115269,1773153920541,-415.2547169,6.873e-05,2]
[408115270,1773153920564,-500.0,6.873e-05,2]
[408115271,1773153920586,-500.0,6.873e-05,2]
[408115272,1773153920608,-500.0,6.873e-05,2]
[408115273,1773153920630,-84.7452831,6.873e-05,2]
[408115274,1773153921198,-415.2547169,6.873e-05,2]
[408115275,1773153921219,-500.0,6.873e-05,2]
[408115276,1773153921239,-500.0,6.873e-05,2]
[408115277,1773153921260,-500.0,6.873e-05,2]
[408115278,1773153921280,-84.7452831,6.873e-05,2]
[408115279,1773153921320,-415.2547169,6.873e-05,2]
[408115280,1773153921339,-500.0,6.873e-05,2]
[408115281,1773153921359,-500.0,6.873e-05,2]
[408115282,1773153921381,-420.0,6.883e-05,2]
[408115283,1773153921404,-164.7452831,6.89e-05,2]
[408115284,1773153921676,-2000.0,6.89e-05,2]
[408115285,1773153922270,-2000.0,6.89e-05,2]
[408115286,1773153922695,-2000.0,6.633e-05,2]
[408115287,1773153922990,-2000.0,6.633e-05,2]
[408115288,1773153925003,-1000.0,6.633e-05,2]
[408115289,1773153925029,-1000.0,6.89e-05,2]
[408115290,1773153925729,-2000.0,6.89e-05,2]
[408115291,1773153943554,-151.0,6.89e-05,2]
[408115292,1773153943574,-151.0,6.89e-05,2]
[408115293,1773153943596,-1698.0,6.89e-05,2]
[408115294,1773153944994,-2000.0,6.89e-05,2]
[408115295,1773153945309,-2000.0,6.89e-05,2]
[408115296,1773153945698,-2000.0,6.89e-05,2]
[408115297,1773153946006,-2000.0,6.821e-05,2]
[408115298,1773153946334,-2000.0,6.821e-05,2]
[408115299,1773153946687,-1000.0,6.821e-05,2]
[408115300,1773153946711,-1000.0,6.89e-05,2]
[408115301,1773153947032,-2000.0,6.89e-05,2]
[408115302,1773153947373,-2000.0,6.89e-05,2]
[408115303,1773153947732,-2000.0,6.89e-05,2]
[408115304,1773153948048,-2000.0,6.89e-05,2]
[408115305,1773153948401,-2000.0,6.89e-05,2]
[408115306,1773153949150,-2000.0,6.89e-05,2]
[408115307,1773153949193,-2000.0,6.89e-05,2]
[408115308,1773153949440,-2000.0,6.89e-05,2]
[408115309,1773153949840,-2000.0,6.89e-05,2]
[408115310,1773153950288,-2000.0,6.89e-05,2]
[408115311,1773153950635,-2000.0,6.89e-05,2]
[408115312,1773153951031,-2000.0,6.89e-05,2]
[408115313,1773153951490,-2000.0,6.89e-05,2]
[408115314,1773153951860,-2000.0,6.89e-05,2]
[408115315,1773153952913,-2000.0,6.89e-05,2]
[408115316,1773153953272,-2000.0,6.89e-05,2]
[408115317,1773153953640,-2000.0,6.89e-05,2]
[408115318,1773153954010,-2000.0,6.89e-05,2]
[408115319,1773153955701,-2000.0,6.89e-05,2]
[408115320,1773153957454,-2000.0,6.89e-05,2]
[408115321,1773153958723,-2000.0,6.89e-05,2]
[408115322,1773153960254,-2000.0,6.89e-05,2]
[408115323,1773153960291,-2000.0,6.89e-05,2]
[408115324,1773153960324,-2000.0,6.89e-05,2]
[408115325,1773153962911,-300.0,6.889e-05,2]
[408115326,1773153962935,-1700.0,6.89e-05,2]
[408115327,1773153964645,-2000.0,6.89e-05,2]
[408115328,1773153967033,-500.0,6.873e-05,2]
[408115329,1773153967058,-1500.0,6.89e-05,2]
[408115330,1773153968254,-2000.0,6.89e-05,2]
[408115331,1773153969404,-2000.0,6.821e-05,2]
[408115332,1773153975174,-1800.0,6.821e-05,2]
[408115335,1773154035215,-2000.0,6.685e-05,2]
[408115336,1773154036266,-2000.0,6.685e-05,2]
[408115337,1773154036665,-1000.0,6.685e-05,2]
[408115338,1773154036685,-170.5,6.753e-05,2]
[408115339,1773154036705,-829.5,6.821e-05,2]
[408115340,1773154037201,-370.5,6.821e-05,2]
[408115341,1773154037221,-249.88106012,6.821e-05,2]
[408115342,1773154037241,-300.0,6.872e-05,2]
[408115343,1773154037266,-500.0,6.873e-05,2]
[408115344,1773154037290,-500.0,6.873e-05,2]
[408115345,1773154037311,-79.61893988,6.873e-05,2]
[408115346,1773154037466,-420.38106012,6.873e-05,2]
[408115347,1773154037487,-500.0,6.873e-05,2]
[408115348,1773154037506,-500.0,6.873e-05,2]
[408115349,1773154037529,-500.0,6.873e-05,2]
[408115350,1773154037550,-79.61893988,6.873e-05,2]
[408115351,1773154037776,-420.38106012,6.873e-05,2]
[408115352,1773154037797,-500.0,6.873e-05,2]
[408115353,1773154037818,-499.99999999,6.889e-05,2]
[408115354,1773154037843,-343.56240523,6.889e-05,2]
[408115355,1773154037866,-236.05653466,6.89e-05,2]
[408115356,1773154038211,-2000.0,6.89e-05,2]
[408115357,1773154038577,-2000.0,6.89e-05,2]
[408115358,1773154039146,-2000.0,6.89e-05,2]
[408115359,1773154039389,-2000.0,6.89e-05,2]
[408115360,1773154039768,-2000.0,6.89e-05,2]
[408115361,1773154040093,-2000.0,6.89e-05,2]
[408115362,1773154040436,-2000.0,6.89e-05,2]
[408115363,1773154040841,-2000.0,6.89e-05,2]
[408115364,1773154041127,-1357.09970966,6.89e-05,2]
[408115365,1773154041159,-2000.0,6.89e-05,2]
[408115366,1773154041548,-2000.0,6.89e-05,2]
[408115367,1773154041920,-2000.0,6.89e-05,2]
[408115368,1773154042252,-2000.0,6.89e-05,2]
[408115369,1773154042604,-2000.0,6.821e-05,2]
[408115370,1773154042965,-2000.0,6.821e-05,2]
[408115371,1773154043375,-1000.0,6.821e-05,2]
[408115372,1773154043400,-1000.0,6.89e-05,2]
[408115373,1773154043699,-2000.0,6.89e-05,2]
[408115374,1773154044045,-2000.0,6.89e-05,2]
[408115375,1773154044447,-2000.0,6.89e-05,2]
[408115376,1773154044938,-2000.0,6.89e-05,2]
[408115377,1773154046036,-2000.0,6.89e-05,2]
[408115378,1773154046106,-2000.0,6.89e-05,2]
[408115379,1773154046159,-2000.0,6.89e-05,2]
[408115380,1773154046579,-2000.0,6.89e-05,2]
[408115381,1773154046890,-2000.0,6.89e-05,2]
[408115382,1773154047332,-2000.0,6.89e-05,2]
[408115383,1773154054116,-335.07609561,6.89e-05,2]
[408115384,1773154067389,-2000.0,6.753e-05,2]
[408115385,1773154068183,-2000.0,6.753e-05,2]
[408115386,1773154068565,-1000.0,6.753e-05,2]
[408115387,1773154068586,-1000.0,6.821e-05,2]
[408115388,1773154073804,-2000.0,6.821e-05,2]
[408115389,1773154075081,-2000.0,6.753e-05,2]
[408115390,1773154076092,-2000.0,6.753e-05,2]
[408115391,1773154078023,-1000.0,6.753e-05,2]
[408115392,1773154078044,-1000.0,6.821e-05,2]
[408115393,1773154079057,-1000.0,6.821e-05,2]
[408115394,1773154079081,-1000.0,6.89e-05,2]
[408115395,1773154080527,-2000.0,6.89e-05,2]
[408115396,1773154083473,-2000.0,6.753e-05,2]
[408115397,1773154084949,-2000.0,6.753e-05,2]
[408115398,1773154085973,-178.92229774,6.129e-05,2]
[408115399,1773154085998,-1000.0,6.753e-05,2]
[408115400,1773154086021,-300.0,6.889e-05,2]
[408115401,1773154086048,-521.07770226,6.89e-05,2]
[408115402,1773154113423,-178.92229774,6.251e-05,7]
[408115403,1773154113447,-178.92229774,6.435e-05,14]
[408115404,1773154113470,-1642.15540452,6.552e-05,2]
[408115405,1773154114632,-2000.0,6.552e-05,2]
[408115406,1773154115873,-1357.84459548,6.552e-05,2]
[408115407,1773154115894,-642.15540452,6.618e-05,2]
[408115408,1773154116237,-2000.0,6.618e-05,2]
[408115409,1773154116566,-2000.0,6.618e-05,2]
[408115410,1773154117015,-357.84459548,6.618e-05,2]
[408115411,1773154117035,-1642.15540452,6.685e-05,2]
[408115412,1773154117413,-2000.0,6.685e-05,2]
[408115413,1773154117733,-1357.84459548,6.685e-05,2]
[408115414,1773154117756,-500.0,6.873e-05,2]
[408115415,1773154117778,-142.15540452,6.873e-05,2]
[408115416,1773154118095,-357.84459548,6.873e-05,2]
[408115417,1773154118118,-500.0,6.873e-05,2]
[408115418,1773154118140,-524.3442637,6.873e-05,2]
[408115419,1773154118163,-617.81114082,6.89e-05,2]
[408115420,1773154118417,-2000.0,6.89e-05,2]
[408115421,1773154118874,-2000.0,6.89e-05,2]
[408115422,1773154119278,-2000.0,6.89e-05,2]
[408115423,1773154119888,-2000.0,6.89e-05,2]
[408115424,1773154138194,-476.31077228,6.519e-05,2]
[408115425,1773154138219,-1523.68922772,6.585e-05,2]
[408115426,1773154139643,-2000.0,6.585e-05,2]
[408115427,1773154140930,-1476.31077228,6.585e-05,2]
[408115428,1773154140954,-179.68203518,6.652e-05,2]
[408115429,1773154140978,-344.00719254,6.821e-05,2]
[408115430,1773154170975,-900.0,6.753e-05,2]
[408115431,1773154203631,184.53,2e-05,2]
[408115458,1773154232412,-184.53,2.2e-05,2]
[408115460,1773154232421,-421.622927,6.583e-05,2]
[408115462,1773154232430,-34.48673557,6.753e-05,2]
[408115694,1773154238643,-4065.51326443,6.753e-05,2]
[408115695,1773154238654,-516.0,6.753e-05,2]
[408115696,1773154238664,-300.0,6.789e-05,2]
[408115697,1773154238673,-300.0,6.789e-05,2]
[408115698,1773154238682,-300.0,6.789e-05,2]
[408115706,1773154238990,-272.03390357,6.789e-05,2]
[408115707,1773154239001,-27.96609643,6.789e-05,2]
[408115708,1773154239010,-250.39390357,6.789e-05,2]
[408115709,1773154239021,-949.60609643,6.789e-05,2]
[408115710,1773154239030,-188566.49486046,6.79e-05,2]
[408115711,1773154239094,-1165.60414793,6.79e-05,2]
[408115745,1773154247956,-4948.6632714,6.722e-05,2]
[408115746,1773154247965,-29011.8020684,6.79e-05,2]
[408115747,1773154247977,-1381.0,6.79e-05,2]
[408115748,1773154248001,-12624.63880227,6.79e-05,2]
[408115751,1773154628321,-1655.99280746,6.456e-05,2]
[408115752,1773154628346,-344.00719254,6.521e-05,2]
[408115753,1773154630761,-2000.0,6.521e-05,2]
[408115754,1773154631695,-2000.0,6.521e-05,2]
[408115755,1773154632691,-655.99280746,6.521e-05,2]
[408115756,1773154632714,-185.02019758,6.554e-05,2]
[408115757,1773154632735,-219.491,6.654e-05,2]
[408115758,1773154632756,-300.0,6.719e-05,2]
[408115759,1773154632777,-639.49599496,6.72e-05,2]
[408115760,1773154637150,-200.0,6.72e-05,2]
[408115764,1773154843586,-1405.82866165,5.821e-05,2]
[408115775,1773155156297,-1244.39545629,5.592e-05,2]
[408115776,1773155163956,-161.43320536,5.592e-05,2]
[408115777,1773155163978,-38.56679464,5.62e-05,2]
[408115798,1773155242070,-1237.5,5.564e-05,2]
[408115799,1773155246309,-1242.0,5.564e-05,2]
[408115802,1773155357099,-2520.5,5.564e-05,2]
[408115803,1773155357120,-145.8437953,5.62e-05,2]
[408115804,1773155357141,-1200.0,5.819e-05,2]
[408115805,1773155357161,-300.0,5.82e-05,2]
[408115806,1773155357180,-300.0,5.82e-05,2]
[408115807,1773155357200,-300.0,5.82e-05,2]
[408115808,1773155357220,-300.0,5.82e-05,2]
[408115809,1773155357240,-6463.79771615,5.821e-05,2]
[408115810,1773155357260,-239.32797516,5.821e-05,2]
[408115811,1773155357286,-264.67202484,5.821e-05,2]
[408115812,1773155369125,-4806.46081377,6.337e-05,2]
[408115813,1773155370113,-193.53918623,6.337e-05,2]
[408115814,1773155370135,-11.39085476,6.401e-05,2]
[408115815,1773155402275,191.45,2e-05,2]
[408115993,1773155437906,-5000.0,6.337e-05,2]
[408115995,1773155437915,-510.0,6.337e-05,2]
[408115997,1773155437924,-308.3405592,6.46e-05,2]
[408115999,1773155437934,-1138.0,6.551e-05,2]
[408116001,1773155437943,-300.0,6.552e-05,2]
[408116003,1773155437952,-300.0,6.552e-05,2]
[408116006,1773155437962,-300.0,6.552e-05,2]
[408116008,1773155437971,-500.0,6.553e-05,2]
[408116010,1773155437980,-422.80634748,6.553e-05,2]
[408116012,1773155437989,-500.0,6.553e-05,2]
[408116014,1773155437999,-500.0,6.553e-05,2]
[408116016,1773155438008,-500.0,6.553e-05,2]
[408116018,1773155438017,-500.0,6.553e-05,2]
[408116020,1773155438026,-500.0,6.553e-05,2]
[408116022,1773155438036,-500.0,6.553e-05,2]
[408116024,1773155438045,-500.0,6.553e-05,2]
[408116026,1773155438054,-490.78280854,6.553e-05,2]
[408116241,1773155440365,-9.21719146,6.553e-05,2]
[408116243,1773155440374,-220.13419402,6.553e-05,2]
[408116245,1773155440383,-197.48361718,6.553e-05,2]
[408116247,1773155440395,-302.51638282,6.553e-05,2]
[408116249,1773155440404,-28217.58395375,6.573e-05,2]
[408116737,1773155445762,-9315.38910338,6.573e-05,2]
[408121729,1773155608309,-175.451988,6.378e-05,2]
[408121730,1773155608333,-191.32936266,6.41e-05,2]
[408121731,1773155608356,-175.593,6.441e-05,2]
[408121732,1773155608379,-1457.62564934,6.442e-05,2]
[408121733,1773155609578,-2000.0,6.442e-05,2]
[408121734,1773155610637,-1542.37435066,6.442e-05,2]
[408121735,1773155610661,-175.451988,6.507e-05,2]
[408121736,1773155610686,-282.17366134,6.552e-05,2]
[408121737,1773155611911,-17.82633866,6.552e-05,2]
[408121738,1773155611932,-500.0,6.553e-05,2]
[408121739,1773155611953,-500.0,6.553e-05,2]
[408121740,1773155611974,-500.0,6.553e-05,2]
[408121741,1773155611995,-482.17366134,6.553e-05,2]
[408121742,1773155613167,-17.82633866,6.553e-05,2]
[408121743,1773155613190,-500.0,6.553e-05,2]
[408121744,1773155613211,-500.0,6.553e-05,2]
[408121745,1773155613235,-500.0,6.553e-05,2]
[408121746,1773155613259,-482.17366134,6.553e-05,2]
[408121763,1773156018266,2000.0,0.000102,120]
[408121766,1773156114683,-5000.0,6.153e-05,2]
[408121767,1773156114714,-187.50277541,6.184e-05,2]
[408121768,1773156114743,-509.0,6.215e-05,2]
[408121769,1773156114769,-209.02095813,6.278e-05,2]
[408121770,1773156114795,-175.593,6.393e-05,2]
[408121771,1773156116153,4124.04435335,6.091e-05,2]
[408121773,1773156134465,3713.72217957,6.5e-05,2]
[408121776,1773156172417,-1286.27782043,6.5e-05,2]
[408121777,1773156172445,-300.0,6.502e-05,2]
[408121778,1773156172471,-500.0,6.503e-05,2]
[408121779,1773156172498,-500.0,6.503e-05,2]
[408121780,1773156172525,-500.0,6.503e-05,2]
[408121781,1773156172552,-500.0,6.503e-05,2]